Departmental Area,Entity,Payment Date,Expense type,Expense Area,Supplier Name,Payment Reference,    Invoice Distribution Amount    ,Description,Supplier Type,Expenditure Type
UK Statistics Family,Office for National Statistics,06/06/2022,Hosting,IT Operations,Crown Hosting Data Centres Limited,230499,"76,200.00",Information Management Services,SME,Programme Expenditure
UK Statistics Family,Office for National Statistics,06/06/2022,Surveys,Prices Division,Kantar Public UK Ltd.,230500,"218,353.80",Statistical Services,SME,Programme Expenditure
UK Statistics Family,Office for National Statistics,06/06/2022,FM Contract Payments,Vinci Payments,Vinci Construction UK Limited,230503,"344,689.26",Facilities Mangement Services,Large,Programme Expenditure
UK Statistics Family,Office for National Statistics,06/06/2022,Exp - Purchase Of Goods/Services - Contractors,Digital Publishing,Certes Computing Ltd,230510,"24,210.90",Information Management Services,SME,Programme Expenditure
UK Statistics Family,Office for National Statistics,06/06/2022,Exp - Purchase Of Goods/Services - Contractors,Digital Media,Certes Computing Ltd,230510,11368.87,Information Management Services,SME,Programme Expenditure
UK Statistics Family,Office for National Statistics,06/06/2022,Exp - Purchase Of Goods/Services - Contractors,Data Architecture,Certes Computing Ltd,230510,"13,678.63",Information Management Services,SME,Programme Expenditure
UK Statistics Family,Office for National Statistics,06/06/2022,Exp - Purchase Of Goods/Services - Contractors,Digital Delivery,Certes Computing Ltd,230510,"4,534.56",Information Management Services,SME,Programme Expenditure
UK Statistics Family,Office for National Statistics,06/06/2022,Exp - Purchase Of Goods/Services - Contractors,2023 CENSUS DATA TRANSFORMATION,La International,230511,"4,428.85",Information Management Services,SME,Programme Expenditure
UK Statistics Family,Office for National Statistics,06/06/2022,Exp - Purchase Of Goods/Services - Contractors,Testing,La International,230511,"4,431.18",Information Management Services,SME,Programme Expenditure
UK Statistics Family,Office for National Statistics,06/06/2022,Exp - Purchase Of Goods/Services - Contractors,Testing,La International,230511,7773.13,Information Management Services,SME,Programme Expenditure
UK Statistics Family,Office for National Statistics,06/06/2022,Exp - Purchase Of Goods/Services - Contractors,Testing,La International,230511,"3,491.98",Information Management Services,SME,Programme Expenditure
UK Statistics Family,Office for National Statistics,06/06/2022,Exp - Purchase Of Goods/Services - Contractors,Testing,La International,230511,"6,124.97",Information Management Services,SME,Programme Expenditure
UK Statistics Family,Office for National Statistics,06/06/2022,Exp - Purchase Of Goods/Services - Contractors,Consultancy Management,La International,230511,3588.3,Information Management Services,SME,Programme Expenditure
UK Statistics Family,Office for National Statistics,06/06/2022,Exp - Purchase Of Goods/Services - Contractors,Digital Publishing,La International,230511,"3,593.40",Information Management Services,SME,Programme Expenditure
UK Statistics Family,Office for National Statistics,06/06/2022,Exp - Purchase Of Goods/Services - Contractors,STRATEGY SYNTHESIS AND CO-ORDINATION,La International,230511,"5,682.42",Information Management Services,SME,Programme Expenditure
UK Statistics Family,Office for National Statistics,06/06/2022,Exp - Purchase Of Goods/Services - Contractors,Data Architecture,La International,230511,"36,221.17",Information Management Services,SME,Programme Expenditure
UK Statistics Family,Office for National Statistics,06/06/2022,Exp - Purchase Of Goods/Services - Contractors,IT Applications,La International,230511,"4,101.18",Information Management Services,SME,Programme Expenditure
UK Statistics Family,Office for National Statistics,06/06/2022,EXP - PURCHASE OF GOODS/SERVICES - DATA ACQUISITION,Data As A Service,Deloitte,230513,"36,444.00",Information Management Services,Large,Programme Expenditure
UK Statistics Family,Office for National Statistics,06/06/2022,Exp - Purchase Of Goods/Services - Contractors,Business Architecture,LA FOSSE ASSOCIATES LIMITED,230526,5655,Information Management Services,Large,Programme Expenditure
UK Statistics Family,Office for National Statistics,06/06/2022,Exp - Purchase Of Goods/Services - Contractors,Business Architecture,LA FOSSE ASSOCIATES LIMITED,230526,5655,Information Management Services,Large,Programme Expenditure
UK Statistics Family,Office for National Statistics,06/06/2022,Exp - Purchase Of Goods/Services - Contractors,Digital Publishing,LA FOSSE ASSOCIATES LIMITED,230526,"18,000.00",Information Management Services,Large,Programme Expenditure
UK Statistics Family,Office for National Statistics,06/06/2022,Exp - Purchase Of Goods/Services - Contractors,Data As A Service,LA FOSSE ASSOCIATES LIMITED,230526,"12,960.00",Information Management Services,Large,Programme Expenditure
UK Statistics Family,Office for National Statistics,06/06/2022,Exp - Purchase Of Goods/Services - IT Contractual Services,Digital Publishing,Armakuni Ltd,230530,"25,020.00",Information Management Services,SME,Programme Expenditure
UK Statistics Family,Office for National Statistics,06/06/2022,Exp - Purchase Of Goods/Services - Contractors,Covid Infection Survey,Parity Resources Limited,230533,"3,592.56",Information Management Services,Large,Programme Expenditure
UK Statistics Family,Office for National Statistics,06/06/2022,Exp - Short-Term Contract & Agency Staff - Full Cost,Recruitment ,Parity Resources Limited,230533,607.86,Information Management Services,Large,Programme Expenditure
UK Statistics Family,Office for National Statistics,06/06/2022,Exp - Short-Term Contract & Agency Staff - Full Cost,Recruitment ,Parity Resources Limited,230533,"4,395.60",Information Management Services,Large,Programme Expenditure
UK Statistics Family,Office for National Statistics,06/06/2022,Exp - Purchase Of Goods/Services - Contractors,CLOUD ARCHITECTURE,Parity Resources Limited,230533,"3,430.50",Information Management Services,Large,Programme Expenditure
UK Statistics Family,Office for National Statistics,06/06/2022,Exp - Purchase Of Goods/Services - Contractors,Strategy And Architecture,Parity Resources Limited,230533,"4,207.50",Information Management Services,Large,Programme Expenditure
UK Statistics Family,Office for National Statistics,06/06/2022,Exp - Purchase Of Goods/Services - Contractors,IT Operations,Parity Resources Limited,230533,26241.3,Information Management Services,Large,Programme Expenditure
UK Statistics Family,Office for National Statistics,06/06/2022,Exp - Purchase Of Goods/Services - Contractors,Digital Delivery,Parity Resources Limited,230533,"3,096.00",Information Management Services,Large,Programme Expenditure
UK Statistics Family,Office for National Statistics,07/06/2022,Exp - Purchase Of Goods/Services - Contractors,Consultancy Management,Concept Information Technology Ltd T/A Concept Resourcing,230882,"9,078.38",Information Management Services,Large,Programme Expenditure
UK Statistics Family,Office for National Statistics,07/06/2022,Exp - Short-Term Contract & Agency Staff - Full Cost,Covid Infection Survey,Concept Information Technology Ltd T/A Concept Resourcing,230882,"3,238.87",Information Management Services,Large,Programme Expenditure
UK Statistics Family,Office for National Statistics,07/06/2022,Exp - Short-Term Contract & Agency Staff - Full Cost,WIDER SURVEILLANCE STUDIES,Concept Information Technology Ltd T/A Concept Resourcing,230882,614.2,Information Management Services,Large,Programme Expenditure
UK Statistics Family,Office for National Statistics,07/06/2022,Exp - Short-Term Contract & Agency Staff - Full Cost,WIDER SURVEILLANCE STUDIES,Concept Information Technology Ltd T/A Concept Resourcing,230882,"2,128.95",Information Management Services,Large,Programme Expenditure
UK Statistics Family,Office for National Statistics,07/06/2022,Exp - Short-Term Contract & Agency Staff - Full Cost,N A Coordination,Concept Information Technology Ltd T/A Concept Resourcing,230882,"3,912.61",Information Management Services,Large,Programme Expenditure
UK Statistics Family,Office for National Statistics,07/06/2022,Exp - Short-Term Contract & Agency Staff - Full Cost,N A Coordination,Concept Information Technology Ltd T/A Concept Resourcing,230882,"8,017.23",Information Management Services,Large,Programme Expenditure
UK Statistics Family,Office for National Statistics,07/06/2022,Exp - Short-Term Contract & Agency Staff - Full Cost,Prices Division,Concept Information Technology Ltd T/A Concept Resourcing,230882,7154.08,Information Management Services,Large,Programme Expenditure
UK Statistics Family,Office for National Statistics,07/06/2022,Exp - Short-Term Contract & Agency Staff - Full Cost,Prices Division,Concept Information Technology Ltd T/A Concept Resourcing,230882,"18,121.59",Information Management Services,Large,Programme Expenditure
UK Statistics Family,Office for National Statistics,07/06/2022,Exp - Short-Term Contract & Agency Staff - Full Cost,Corporations,Concept Information Technology Ltd T/A Concept Resourcing,230882,"2,543.04",Information Management Services,Large,Programme Expenditure
UK Statistics Family,Office for National Statistics,07/06/2022,Exp - Purchase Of Goods/Services - Contractors,Security Advisory,Certes Computing Ltd,230889,"17,485.78",Information Management Services,SME,Programme Expenditure
UK Statistics Family,Office for National Statistics,07/06/2022,Exp - Purchase Of Goods/Services - Contractors,Security Advisory,Certes Computing Ltd,230889,13322.5,Information Management Services,SME,Programme Expenditure
UK Statistics Family,Office for National Statistics,07/06/2022,Exp - Purchase Of Goods/Services - Contractors,CLOUD ARCHITECTURE,La International,230890,"14,161.07",Information Management Services,SME,Programme Expenditure
UK Statistics Family,Office for National Statistics,07/06/2022,Exp - Purchase Of Goods/Services - Contractors,Tech Delivery Data As A Platform,La International,230890,"11,662.06",Information Management Services,SME,Programme Expenditure
UK Statistics Family,Office for National Statistics,07/06/2022,Exp - Purchase Of Goods/Services - Contractors,IT Applications,La International,230890,"7,464.66",Information Management Services,SME,Programme Expenditure
UK Statistics Family,Office for National Statistics,07/06/2022,Surveys,Business Outputs And Developments,Iff Research,230892,"65,226.00",Statistical Services,Large,Programme Expenditure
UK Statistics Family,Office for National Statistics,07/06/2022,Exp - Purchase Of Goods/Services - Contractors,Testing,Malikshaw Interim & Executive,230893,"13,566.00",Information Management Services,SME,Programme Expenditure
UK Statistics Family,Office for National Statistics,07/06/2022,Exp - Purchase Of Goods/Services - Contractors,INTEGRATED DATA STRATEGY AND DELIVERY,Malikshaw Interim & Executive,230893,"13,751.52",Information Management Services,SME,Programme Expenditure
UK Statistics Family,Office for National Statistics,07/06/2022,Exp - Purchase Of Goods/Services - Contractors,Data Science Campus,Malikshaw Interim & Executive,230893,"15,724.80",Information Management Services,SME,Programme Expenditure
UK Statistics Family,Office for National Statistics,07/06/2022,Exp - Purchase Of Goods/Services - IT Contractual Services,Digital Publishing,Methods Business & Digital Technology Ltd,230895,"179,009.26",Information Management Services,Large,Programme Expenditure
UK Statistics Family,Office for National Statistics,07/06/2022,Exp - Purchase Of Goods And Services Consultants,Digital Media,Methods Business & Digital Technology Ltd,230895,"42,000.00",Information Management Services,Large,Programme Expenditure
UK Statistics Family,Office for National Statistics,07/06/2022,Exp - Purchase Of Goods/Services - Incentive Payments,Survey Management,Sodexo Motivation Solutions U.K. ltd,230896,"1,914.14",Survey Response Incentive Vouchers,Large,Programme Expenditure
UK Statistics Family,Office for National Statistics,07/06/2022,Exp - Purchase Of Goods/Services - Incentive Payments,Survey Management,Sodexo Motivation Solutions U.K. ltd,230896,"1,099.51",Survey Response Incentive Vouchers,Large,Programme Expenditure
UK Statistics Family,Office for National Statistics,07/06/2022,Exp - Purchase Of Goods/Services - Incentive Payments,Survey Management,Sodexo Motivation Solutions U.K. ltd,230896,566.28,Survey Response Incentive Vouchers,Large,Programme Expenditure
UK Statistics Family,Office for National Statistics,07/06/2022,Exp - Purchase Of Goods/Services - Incentive Payments,Covid Infection Survey,Sodexo Motivation Solutions U.K. ltd,230896,"105,669.18",Survey Response Incentive Vouchers,Large,Programme Expenditure
UK Statistics Family,Office for National Statistics,07/06/2022,Other Goods And Services,ONS Corporate Funds,Edenred (UK Group) Limited,230897,"26,850.00",Performance Reward Vouchers,Large,Programme Expenditure
UK Statistics Family,Office for National Statistics,08/06/2022,Exp - Purchase Of Goods/Services - Contractors,Data Science Campus,Cardiff University,230909,"35,759.40",Delivery Support Services,Large,Programme Expenditure
UK Statistics Family,Office for National Statistics,08/06/2022,Exp - Purchase Of Goods/Services - Contractors,Security Advisory,Certes Computing Ltd,230911,"18,457.09",Information Management Services,SME,Programme Expenditure
UK Statistics Family,Office for National Statistics,08/06/2022,Exp - Purchase Of Goods/Services - Contractors,Security Advisory,Certes Computing Ltd,230911,"13,183.15",Information Management Services,SME,Programme Expenditure
UK Statistics Family,Office for National Statistics,08/06/2022,Exp - Purchase Of Goods/Services - Contractors,Data Architecture,Certes Computing Ltd,230911,"10,078.99",Information Management Services,SME,Programme Expenditure
UK Statistics Family,Office for National Statistics,08/06/2022,Exp - Purchase Of Goods And Services Consultants,Policy and Design,RSM Risk Assurance Services LLP,230914,"65,940.10",Consultancy,SME,Programme Expenditure
UK Statistics Family,Office for National Statistics,08/06/2022,Exp - Seconded UK Staff - Basic Salary,Corporate Planning And Resilience,Bank of England,230915,"30,714.80",Seconded Staff,Large,Programme Expenditure
UK Statistics Family,Office for National Statistics,08/06/2022,Exp - Purchase Of Goods/Services - Contractors,IT Operations,Malikshaw Interim & Executive,230916,"17,472.00",Information Management Services,SME,Programme Expenditure
UK Statistics Family,Office for National Statistics,08/06/2022,Exp - Purchase Of Goods/Services - Contractors,Digital Delivery,Malikshaw Interim & Executive,230916,9336,Information Management Services,SME,Programme Expenditure
UK Statistics Family,Office for National Statistics,08/06/2022,Exp - Purchase Of Goods/Services - Contractors,Tech Delivery Data As A Platform,SmartSourcing Ltd,230919,3600,Information Management Services,SME,Programme Expenditure
UK Statistics Family,Office for National Statistics,08/06/2022,Exp - Purchase Of Goods/Services - Contractors,IT Operations,SmartSourcing Ltd,230919,"24,154.66",Information Management Services,SME,Programme Expenditure
UK Statistics Family,Office for National Statistics,08/06/2022,Exp - Purchase Of Goods/Services - Contractors,Digital Delivery,SmartSourcing Ltd,230919,"2,636.93",Information Management Services,SME,Programme Expenditure
UK Statistics Family,Office for National Statistics,08/06/2022,Exp - Purchase Of Goods/Services - Contractors,Data Science Campus,SmartSourcing Ltd,230919,"12,138.48",Information Management Services,SME,Programme Expenditure
UK Statistics Family,Office for National Statistics,08/06/2022,Exp - Purchase Of Goods/Services - Contractors,Data As A Service,SmartSourcing Ltd,230919,"12,525.41",Information Management Services,SME,Programme Expenditure
UK Statistics Family,Office for National Statistics,08/06/2022,Other Goods And Services,ONS Corporate Funds,Edenred (UK Group) Limited,230920,"31,874.00",Cycle to Work Scheme,Large,Programme Expenditure
UK Statistics Family,Office for National Statistics,08/06/2022,Exp - Purchase Of Goods/Services - Contractors,Business Architecture,Talent International,230922,"12,901.72",Information Management Services,SME,Programme Expenditure
UK Statistics Family,Office for National Statistics,08/06/2022,Exp - Purchase Of Goods/Services - Contractors,Testing,Talent International,230922,"2,160.00",Information Management Services,SME,Programme Expenditure
UK Statistics Family,Office for National Statistics,08/06/2022,Exp - Purchase Of Goods/Services - Contractors,Consultancy Management,Talent International,230922,8550,Information Management Services,SME,Programme Expenditure
UK Statistics Family,Office for National Statistics,08/06/2022,Exp - Purchase Of Goods/Services - Contractors,Consultancy Management,Talent International,230922,"8,550.00",Information Management Services,SME,Programme Expenditure
UK Statistics Family,Office for National Statistics,08/06/2022,Exp - Short-Term Contract & Agency Staff - Full Cost,Covid Infection Survey,Talent International,230922,"3,422.20",Information Management Services,SME,Programme Expenditure
UK Statistics Family,Office for National Statistics,08/06/2022,Exp - Purchase Of Goods/Services - Contractors,Covid Infection Survey,Talent International,230922,"12,350.00",Information Management Services,SME,Programme Expenditure
UK Statistics Family,Office for National Statistics,08/06/2022,Exp - Short-Term Contract & Agency Staff - Full Cost,WIDER SURVEILLANCE STUDIES,Talent International,230922,"2,536.42",Information Management Services,SME,Programme Expenditure
UK Statistics Family,Office for National Statistics,08/06/2022,Exp - Purchase Of Goods/Services - Contractors,Digital Publishing,Talent International,230922,"13,657.20",Information Management Services,SME,Programme Expenditure
UK Statistics Family,Office for National Statistics,08/06/2022,Exp - Short-Term Contract & Agency Staff - Full Cost,Strategy And Engagement,Talent International,230922,"3,674.36",Information Management Services,SME,Programme Expenditure
UK Statistics Family,Office for National Statistics,08/06/2022,Exp - Purchase Of Goods/Services - Contractors,Data Architecture,Talent International,230922,"18,480.00",Information Management Services,SME,Programme Expenditure
UK Statistics Family,Office for National Statistics,08/06/2022,Exp - Purchase Of Goods/Services - Contractors,Strategy And Architecture,Talent International,230922,"3,360.00",Information Management Services,SME,Programme Expenditure
UK Statistics Family,Office for National Statistics,08/06/2022,Exp - Purchase Of Goods/Services - Contractors,Strategy And Architecture,Talent International,230922,"15,960.00",Information Management Services,SME,Programme Expenditure
UK Statistics Family,Office for National Statistics,08/06/2022,Exp - Purchase Of Goods/Services - Contractors,IT Operations,Talent International,230922,31507.2,Information Management Services,SME,Programme Expenditure
UK Statistics Family,Office for National Statistics,08/06/2022,Exp - Short-Term Contract & Agency Staff - Full Cost,Data As A Service,Talent International,230922,873.9,Information Management Services,SME,Programme Expenditure
UK Statistics Family,Office for National Statistics,08/06/2022,Exp - Short-Term Contract & Agency Staff - Full Cost,Data As A Service,Talent International,230922,"3,930.82",Information Management Services,SME,Programme Expenditure
UK Statistics Family,Office for National Statistics,09/06/2022,Telecoms,IT Operations,Bt Global Services,231164,"47,915.94",Telecommunications,Large,Programme Expenditure
UK Statistics Family,Office for National Statistics,09/06/2022,Exp - Purchase Of Goods/Services - Contractors,Testing,La International,231167,"5,788.88",Information Management Services,SME,Programme Expenditure
UK Statistics Family,Office for National Statistics,09/06/2022,Exp - Purchase Of Goods/Services - Contractors,Testing,La International,231167,"3,080.62",Information Management Services,SME,Programme Expenditure
UK Statistics Family,Office for National Statistics,09/06/2022,Exp - Purchase Of Goods/Services - Contractors,Testing,La International,231167,"3,080.65",Information Management Services,SME,Programme Expenditure
UK Statistics Family,Office for National Statistics,09/06/2022,Exp - Purchase Of Goods/Services - Contractors,Testing,La International,231167,"6,788.50",Information Management Services,SME,Programme Expenditure
UK Statistics Family,Office for National Statistics,09/06/2022,Exp - Purchase Of Goods/Services - Contractors,Consultancy Management,La International,231167,"3,588.30",Information Management Services,SME,Programme Expenditure
UK Statistics Family,Office for National Statistics,09/06/2022,Exp - Purchase Of Goods/Services - Contractors,Digital Publishing,La International,231167,3593.4,Information Management Services,SME,Programme Expenditure
UK Statistics Family,Office for National Statistics,09/06/2022,Exp - Purchase Of Goods/Services - Contractors,Researcher Support And Data Access ,La International,231167,"5,388.12",Information Management Services,SME,Programme Expenditure
UK Statistics Family,Office for National Statistics,09/06/2022,Exp - Purchase Of Goods/Services - Contractors,CLOUD ARCHITECTURE,La International,231167,"15,827.08",Information Management Services,SME,Programme Expenditure
UK Statistics Family,Office for National Statistics,09/06/2022,Exp - Purchase Of Goods/Services - Contractors,IT Applications,La International,231167,"8,682.36",Information Management Services,SME,Programme Expenditure
UK Statistics Family,Office for National Statistics,09/06/2022,Surveys,ECONOMIC CHANGE,Bureau Van Dijk Electronic Publishing,231171,"70,500.00",Data Acquisition,SME,Programme Expenditure
UK Statistics Family,Office for National Statistics,09/06/2022,Exp - Purchase Of Goods And Services Consultants,2023 CENSUS DATA TRANSFORMATION,The Sensible Code Company,231172,"125,319.60",Statistical Services,SME,Programme Expenditure
UK Statistics Family,Office for National Statistics,10/06/2022,Exp - Purchase Of Goods/Services - Contractors,Data Capability,Parity Resources Limited,231190,10104.05,Information Management Services,Large,Programme Expenditure
UK Statistics Family,Office for National Statistics,10/06/2022,Exp - Purchase Of Goods/Services - Contractors,Covid Infection Survey,Parity Resources Limited,231190,"4,790.08",Information Management Services,Large,Programme Expenditure
UK Statistics Family,Office for National Statistics,10/06/2022,Exp - Purchase Of Goods/Services - Contractors,Security Advisory,Parity Resources Limited,231190,"16,842.00",Information Management Services,Large,Programme Expenditure
UK Statistics Family,Office for National Statistics,10/06/2022,Exp - Purchase Of Goods/Services - Contractors,IT Applications,Parity Resources Limited,231190,"24,446.70",Information Management Services,Large,Programme Expenditure
UK Statistics Family,Office for National Statistics,10/06/2022,Exp - Purchase Of Goods/Services - Contractors,IT Operations,Parity Resources Limited,231190,"17,802.30",Information Management Services,Large,Programme Expenditure
UK Statistics Family,Office for National Statistics,13/06/2022,Hosting,IT Operations,Crown Hosting Data Centres Limited,231499,"26,912.59",Information Management Services,SME,Programme Expenditure
UK Statistics Family,Office for National Statistics,13/06/2022,Exp - Purchase Of Goods/Services - Contractors,Security Advisory,Certes Computing Ltd,231506,"14,987.81",Information Management Services,SME,Programme Expenditure
UK Statistics Family,Office for National Statistics,13/06/2022,Exp - Purchase Of Goods/Services - Contractors,Data Architecture,Certes Computing Ltd,231506,"17,640.72",Information Management Services,SME,Programme Expenditure
UK Statistics Family,Office for National Statistics,13/06/2022,Exp - Purchase Of Goods/Services - Contractors,Data Architecture,Certes Computing Ltd,231506,15118.49,Information Management Services,SME,Programme Expenditure
UK Statistics Family,Office for National Statistics,13/06/2022,Exp - Purchase Of Goods/Services - Contractors,IT Applications,Certes Computing Ltd,231506,"14,586.61",Information Management Services,SME,Programme Expenditure
UK Statistics Family,Office for National Statistics,13/06/2022,Exp - Purchase Of Goods/Services - Contractors,IT Operations,Certes Computing Ltd,231506,"14,483.52",Information Management Services,SME,Programme Expenditure
UK Statistics Family,Office for National Statistics,13/06/2022,Exp - Purchase Of Goods/Services - Contractors,Data Architecture,La International,231507,"5,993.65",Information Management Services,SME,Programme Expenditure
UK Statistics Family,Office for National Statistics,13/06/2022,Exp - Purchase Of Goods/Services - Contractors,Tech Delivery Legacy Sp,La International,231507,"23,411.04",Information Management Services,SME,Programme Expenditure
UK Statistics Family,Office for National Statistics,13/06/2022,Exp - Purchase Of Goods/Services - Contractors,IT Operations,La International,231507,"11,533.86",Information Management Services,SME,Programme Expenditure
UK Statistics Family,Office for National Statistics,13/06/2022,Exp - Purchase Of Goods/Services - Contractors,Data Architecture,Malikshaw Interim & Executive,231509,"15,120.00",Information Management Services,SME,Programme Expenditure
UK Statistics Family,Office for National Statistics,13/06/2022,Exp - Purchase Of Goods/Services - Contractors,Data Architecture,Malikshaw Interim & Executive,231509,"16,598.40",Information Management Services,SME,Programme Expenditure
UK Statistics Family,Office for National Statistics,13/06/2022,Exp - Purchase Of Goods/Services - Contractors,Data Architecture,Malikshaw Interim & Executive,231509,"20,865.60",Information Management Services,SME,Programme Expenditure
UK Statistics Family,Office for National Statistics,13/06/2022,Exp - Purchase Of Goods/Services - Contractors,Data As A Service,Malikshaw Interim & Executive,231509,"18,975.60",Information Management Services,SME,Programme Expenditure
UK Statistics Family,Office for National Statistics,13/06/2022,Exp - Purchase Of Goods/Services - Contractors,Data As A Service,Malikshaw Interim & Executive,231509,"19,605.60",Information Management Services,SME,Programme Expenditure
UK Statistics Family,Office for National Statistics,13/06/2022,Hosting,CLOUD ARCHITECTURE,CTS (Cloud Technology Solutions Ltd),231510,23434.8,Information Management Services,Large,Programme Expenditure
UK Statistics Family,Office for National Statistics,13/06/2022,Hosting,CLOUD ARCHITECTURE,CTS (Cloud Technology Solutions Ltd),231510,"168,219.92",Information Management Services,Large,Programme Expenditure
UK Statistics Family,Office for National Statistics,13/06/2022,Exp - Purchase Of Goods/Services - Incentive Payments,Covid Infection Survey,Sodexo Motivation Solutions U.K. ltd,231514,"101,857.20",Survey Response Incentive Vouchers,Large,Programme Expenditure
UK Statistics Family,Office for National Statistics,13/06/2022,Exp - Purchase Of Goods/Services - Incentive Payments,Strategy And Engagement,Sodexo Motivation Solutions U.K. ltd,231514,473.71,Survey Response Incentive Vouchers,Large,Programme Expenditure
UK Statistics Family,Office for National Statistics,13/06/2022,Exp - Purchase Of Goods/Services - Contractors,Data Architecture,SmartSourcing Ltd,231515,"30,750.82",Information Management Services,SME,Programme Expenditure
UK Statistics Family,Office for National Statistics,13/06/2022,Exp - Purchase Of Goods/Services - Contractors,IT Operations,SmartSourcing Ltd,231515,"3,746.16",Information Management Services,SME,Programme Expenditure
UK Statistics Family,Office for National Statistics,13/06/2022,Exp - Purchase Of Goods/Services - Contractors,Data Architecture,Talent International,231519,"45,419.77",Information Management Services,SME,Programme Expenditure
UK Statistics Family,Office for National Statistics,13/06/2022,Exp - Purchase Of Goods/Services - Contractors,Strategy And Architecture,Talent International,231519,"15,960.00",Information Management Services,SME,Programme Expenditure
UK Statistics Family,Office for National Statistics,13/06/2022,Exp - Purchase Of Goods/Services - Contractors,IT Operations,Talent International,231519,"11,400.00",Information Management Services,SME,Programme Expenditure
UK Statistics Family,Office for National Statistics,13/06/2022,Exp - Purchase Of Goods/Services - Contractors,Data As A Service,Talent International,231519,"15,390.00",Information Management Services,SME,Programme Expenditure
UK Statistics Family,Office for National Statistics,14/06/2022,Exp - Purchase Of Goods/Services - Contractors,Data Architecture,SmartSourcing Ltd,231534,"20,729.76",Information Management Services,SME,Programme Expenditure
UK Statistics Family,Office for National Statistics,14/06/2022,Exp - Purchase Of Goods/Services - Contractors,Data Architecture,SmartSourcing Ltd,231534,"9,350.02",Information Management Services,SME,Programme Expenditure
UK Statistics Family,Office for National Statistics,14/06/2022,Exp - Purchase Of Goods/Services - Contractors,Data As A Service,SmartSourcing Ltd,231534,"17,099.77",Information Management Services,SME,Programme Expenditure
UK Statistics Family,Office for National Statistics,14/06/2022,Exp - Purchase Of Goods/Services - Contractors,Testing,Parity Resources Limited,231536,"26,996.57",Information Management Services,Large,Programme Expenditure
UK Statistics Family,Office for National Statistics,14/06/2022,Exp - Purchase Of Goods/Services - Contractors,Data Architecture,Parity Resources Limited,231536,"14,431.50",Information Management Services,Large,Programme Expenditure
UK Statistics Family,Office for National Statistics,14/06/2022,Exp - Purchase Of Goods/Services - Contractors,CLOUD ARCHITECTURE,Parity Resources Limited,231536,"2,744.40",Information Management Services,Large,Programme Expenditure
UK Statistics Family,Office for National Statistics,15/06/2022,Exp - Short-Term Contract & Agency Staff - Full Cost,WIDER SURVEILLANCE STUDIES,Malikshaw Interim & Executive,231722,"3,408.16",Information Management Services,SME,Programme Expenditure
UK Statistics Family,Office for National Statistics,15/06/2022,Exp - Purchase Of Goods/Services - Contractors,Digital Publishing,Malikshaw Interim & Executive,231722,13751.52,Information Management Services,SME,Programme Expenditure
UK Statistics Family,Office for National Statistics,15/06/2022,Exp - Short-Term Contract & Agency Staff - Full Cost,Data Architecture,Malikshaw Interim & Executive,231722,"10,245.48",Information Management Services,SME,Programme Expenditure
UK Statistics Family,Office for National Statistics,15/06/2022,Exp - Purchase Of Goods/Services - Contractors,CLOUD ARCHITECTURE,Malikshaw Interim & Executive,231722,"8,280.00",Information Management Services,SME,Programme Expenditure
UK Statistics Family,Office for National Statistics,15/06/2022,Software Licences At Cost - Additions,Recruitment ,Horsefly Talent Market Analytics.,231729,"29,280.00",Recruitment Services,SME,Programme Expenditure
UK Statistics Family,Office for National Statistics,15/06/2022,Exp - Purchase Of Goods/Services - Contractors,Testing,Parity Resources Limited,231730,"1,619.53",Information Management Services,Large,Programme Expenditure
UK Statistics Family,Office for National Statistics,15/06/2022,Exp - Short-Term Contract & Agency Staff - Full Cost,Business Architecture Transformation And Statistical Strategy,Parity Resources Limited,231730,"3,310.50",Information Management Services,Large,Programme Expenditure
UK Statistics Family,Office for National Statistics,15/06/2022,Exp - Purchase Of Goods/Services - Contractors,Data Architecture,Parity Resources Limited,231730,"5,772.60",Information Management Services,Large,Programme Expenditure
UK Statistics Family,Office for National Statistics,15/06/2022,Exp - Purchase Of Goods/Services - Contractors,CLOUD ARCHITECTURE,Parity Resources Limited,231730,"18,720.00",Information Management Services,Large,Programme Expenditure
UK Statistics Family,Office for National Statistics,15/06/2022,Exp - Purchase Of Goods/Services - Contractors,Strategy And Architecture,Parity Resources Limited,231730,"4,207.50",Information Management Services,Large,Programme Expenditure
UK Statistics Family,Office for National Statistics,15/06/2022,Exp - Purchase Of Goods/Services - Contractors,IT Operations,Parity Resources Limited,231730,"11,609.40",Information Management Services,Large,Programme Expenditure
UK Statistics Family,Office for National Statistics,16/06/2022,Specialist User Software And Hardware,Covid Infection Survey,Cdw Limited,231875,"1,593.60",Information Management Services,Large,Programme Expenditure
UK Statistics Family,Office for National Statistics,16/06/2022,Telecoms,IT Operations,Cdw Limited,231875,"35,536.80",Information Management Services,Large,Programme Expenditure
UK Statistics Family,Office for National Statistics,16/06/2022,Exp - Short-Term Contract & Agency Staff - Full Cost,Covid Infection Survey,Talent International,231877,"5,023.78",Information Management Services,SME,Programme Expenditure
UK Statistics Family,Office for National Statistics,16/06/2022,Exp - Short-Term Contract & Agency Staff - Full Cost,Data Architecture,Talent International,231877,"16,485.76",Information Management Services,SME,Programme Expenditure
UK Statistics Family,Office for National Statistics,16/06/2022,Exp - Purchase Of Goods/Services - Contractors,Tech Delivery Legacy Sp,Talent International,231877,"18,217.20",Information Management Services,SME,Programme Expenditure
UK Statistics Family,Office for National Statistics,16/06/2022,Exp - Purchase Of Goods/Services - Contractors,IT Operations,Talent International,231877,"15,120.00",Information Management Services,SME,Programme Expenditure
UK Statistics Family,Office for National Statistics,16/06/2022,Exp - Purchase Of Goods/Services - Contractors,Digital Delivery,Talent International,231877,"12,870.00",Information Management Services,SME,Programme Expenditure
UK Statistics Family,Office for National Statistics,17/06/2022,FM Contract Payments,Vinci Payments,Vinci Construction UK Limited,231984,"151,337.29",Facilities Mangement Services,Large,Programme Expenditure
UK Statistics Family,Office for National Statistics,17/06/2022,Postage,Property Titchfield,Pitney Bowes Ltd,231986,"134,622.88",Postage Services,Large,Programme Expenditure
UK Statistics Family,Office for National Statistics,17/06/2022,Accommodation & Building Management,Interview Management IPS,Heathrow Airport,231987,"42,482.53",Rental Charges,Large,Programme Expenditure
UK Statistics Family,Office for National Statistics,17/06/2022,Hosting,Tech Delivery Legacy Sp,CTS (Cloud Technology Solutions Ltd),231992,"76,950.00",Information Management Services,Large,Programme Expenditure
UK Statistics Family,Office for National Statistics,17/06/2022,Exp - Purchase Of Goods/Services - Incentive Payments,Survey Management,Sodexo Motivation Solutions U.K. ltd,231994,"19,440.17",Survey Response Incentive Vouchers,Large,Programme Expenditure
UK Statistics Family,Office for National Statistics,17/06/2022,Exp - Purchase Of Goods/Services - Incentive Payments,Survey Management,Sodexo Motivation Solutions U.K. ltd,231994,746.1,Survey Response Incentive Vouchers,Large,Programme Expenditure
UK Statistics Family,Office for National Statistics,17/06/2022,Exp - Purchase Of Goods/Services - Incentive Payments,Survey Management,Sodexo Motivation Solutions U.K. ltd,231994,"3,868.77",Survey Response Incentive Vouchers,Large,Programme Expenditure
UK Statistics Family,Office for National Statistics,17/06/2022,Exp - Purchase Of Goods/Services - Incentive Payments,Survey Management,Sodexo Motivation Solutions U.K. ltd,231994,"104,480.55",Survey Response Incentive Vouchers,Large,Programme Expenditure
UK Statistics Family,Office for National Statistics,17/06/2022,Exp - Purchase Of Goods/Services - Incentive Payments,Survey Management,Sodexo Motivation Solutions U.K. ltd,231994,"2,134.29",Survey Response Incentive Vouchers,Large,Programme Expenditure
UK Statistics Family,Office for National Statistics,17/06/2022,Exp - Purchase Of Goods/Services - Incentive Payments,Survey Management,Sodexo Motivation Solutions U.K. ltd,231994,423.3,Survey Response Incentive Vouchers,Large,Programme Expenditure
UK Statistics Family,Office for National Statistics,17/06/2022,Exp - Purchase Of Goods/Services - Incentive Payments,Covid Infection Survey,Sodexo Motivation Solutions U.K. ltd,231994,"74,701.08",Survey Response Incentive Vouchers,Large,Programme Expenditure
UK Statistics Family,Office for National Statistics,17/06/2022,Exp - Purchase Of Goods/Services - Incentive Payments,Survey Management,Sodexo Motivation Solutions U.K. ltd,231994,"33,532.33",Survey Response Incentive Vouchers,Large,Programme Expenditure
UK Statistics Family,Office for National Statistics,17/06/2022,Exp - Purchase Of Goods/Services - Contractors,Business Architecture,LA FOSSE ASSOCIATES LIMITED,231995,"10,545.00",Information Management Services,Large,Programme Expenditure
UK Statistics Family,Office for National Statistics,17/06/2022,Exp - Purchase Of Goods/Services - Contractors,Business Architecture,LA FOSSE ASSOCIATES LIMITED,231995,"8,265.00",Information Management Services,Large,Programme Expenditure
UK Statistics Family,Office for National Statistics,17/06/2022,Exp - Purchase Of Goods/Services - Contractors,Consultancy Management,LA FOSSE ASSOCIATES LIMITED,231995,719.99,Information Management Services,Large,Programme Expenditure
UK Statistics Family,Office for National Statistics,17/06/2022,Exp - Purchase Of Goods/Services - Contractors,Consultancy Management,LA FOSSE ASSOCIATES LIMITED,231995,"42,479.29",Information Management Services,Large,Programme Expenditure
UK Statistics Family,Office for National Statistics,17/06/2022,Exp - Purchase Of Goods/Services - Contractors,Consultancy Management,LA FOSSE ASSOCIATES LIMITED,231995,11400,Information Management Services,Large,Programme Expenditure
UK Statistics Family,Office for National Statistics,17/06/2022,Exp - Purchase Of Goods/Services - Contractors,Digital Publishing,LA FOSSE ASSOCIATES LIMITED,231995,"36,450.00",Information Management Services,Large,Programme Expenditure
UK Statistics Family,Office for National Statistics,17/06/2022,Exp - Purchase Of Goods/Services - Contractors,INTEGRATED DATA STRATEGY AND DELIVERY,LA FOSSE ASSOCIATES LIMITED,231995,"27,840.00",Information Management Services,Large,Programme Expenditure
UK Statistics Family,Office for National Statistics,17/06/2022,Exp - Purchase Of Goods/Services - Contractors,Data Architecture,LA FOSSE ASSOCIATES LIMITED,231995,34200,Information Management Services,Large,Programme Expenditure
UK Statistics Family,Office for National Statistics,17/06/2022,Exp - Purchase Of Goods/Services - Contractors,Data Architecture,LA FOSSE ASSOCIATES LIMITED,231995,"13,680.00",Information Management Services,Large,Programme Expenditure
UK Statistics Family,Office for National Statistics,17/06/2022,Exp - Purchase Of Goods/Services - Contractors,CDIO UNGP,LA FOSSE ASSOCIATES LIMITED,231995,"14,580.00",Information Management Services,Large,Programme Expenditure
UK Statistics Family,Office for National Statistics,17/06/2022,Exp - Purchase Of Goods/Services - Contractors,Strategy And Architecture,LA FOSSE ASSOCIATES LIMITED,231995,19950,Information Management Services,Large,Programme Expenditure
UK Statistics Family,Office for National Statistics,17/06/2022,Exp - Purchase Of Goods/Services - Contractors,Strategy And Architecture,LA FOSSE ASSOCIATES LIMITED,231995,"24,729.60",Information Management Services,Large,Programme Expenditure
UK Statistics Family,Office for National Statistics,17/06/2022,Exp - Purchase Of Goods/Services - Contractors,Tech Delivery Legacy Sp,LA FOSSE ASSOCIATES LIMITED,231995,"17,100.00",Information Management Services,Large,Programme Expenditure
UK Statistics Family,Office for National Statistics,17/06/2022,Exp - Purchase Of Goods/Services - Contractors,Digital Delivery,LA FOSSE ASSOCIATES LIMITED,231995,"13,680.00",Information Management Services,Large,Programme Expenditure
UK Statistics Family,Office for National Statistics,17/06/2022,Exp - Purchase Of Goods/Services - IT Contractual Services,Digital Delivery,Armakuni Ltd,231997,"46,200.00",Information Management Services,SME,Programme Expenditure
UK Statistics Family,Office for National Statistics,17/06/2022,Rent Payable,Property Christchurch,Government Property Agency (GPA),231998,"111,145.00",Rental Charges,Large,Programme Expenditure
UK Statistics Family,Office for National Statistics,20/06/2022,Exp - Purchase Of Goods/Services - IT Contractual Services,Security Operations,Deloitte,232244,"241,703.36",Information Management Services,Large,Programme Expenditure
UK Statistics Family,Office for National Statistics,20/06/2022,Rent Payable,Property Titchfield,Government Property Agency (GPA),232246,"354,660.00",Rental Charges,Large,Programme Expenditure
UK Statistics Family,Office for National Statistics,21/06/2022,PPE - NON-PROPERTY (LEASED NON-PFI) - COST - ADDITIONS (AS LESSEE),IT Operations,Crown Hosting Data Centres Limited,232250,"66,425.34",Information Management Services,SME,Programme Expenditure
UK Statistics Family,Office for National Statistics,21/06/2022,Postage,Survey Processing Centre,DHL Parcel Ltd,232256,"34,063.82",Postage Services,Large,Programme Expenditure
UK Statistics Family,Office for National Statistics,21/06/2022,Other Goods And Services,Business Development,The University of Exeter,232262,"59,856.00",Consultancy,SME,Programme Expenditure
UK Statistics Family,Office for National Statistics,21/06/2022,Exp - Purchase Of Goods/Services - IT Contractual Services,Tech Delivery Legacy Sp,CTS (Cloud Technology Solutions Ltd),232263,"183,755.40",Information Management Services,Large,Programme Expenditure
UK Statistics Family,Office for National Statistics,22/06/2022,Exp - Short-Term Contract & Agency Staff - Full Cost,Data Architecture,Talent International,232435,"3,436.38",Information Management Services,SME,Programme Expenditure
UK Statistics Family,Office for National Statistics,22/06/2022,Exp - Purchase Of Goods/Services - Contractors,Strategy And Architecture,Talent International,232435,"19,380.00",Information Management Services,SME,Programme Expenditure
UK Statistics Family,Office for National Statistics,22/06/2022,Exp - Purchase Of Goods/Services - Contractors,Tech Delivery Legacy Sp,Talent International,232435,"14,820.00",Information Management Services,SME,Programme Expenditure
UK Statistics Family,Office for National Statistics,22/06/2022,Exp - Purchase Of Goods/Services - Contractors,Tech Delivery Next Gen IT And Infrastructure,Talent International,232435,"19,380.00",Information Management Services,SME,Programme Expenditure
UK Statistics Family,Office for National Statistics,22/06/2022,Exp - Purchase Of Goods/Services - Contractors,IT Applications,Talent International,232435,"14,820.00",Information Management Services,SME,Programme Expenditure
UK Statistics Family,Office for National Statistics,22/06/2022,Exp - Purchase Of Goods/Services - Contractors,IT Operations,Talent International,232435,"3,000.00",Information Management Services,SME,Programme Expenditure
UK Statistics Family,Office for National Statistics,22/06/2022,Exp - Purchase Of Goods/Services - Contractors,Digital Delivery,Talent International,232435,"17,077.20",Information Management Services,SME,Programme Expenditure
UK Statistics Family,Office for National Statistics,22/06/2022,Accommodation & Building Management,Property London,Westminster City Council,232420,"77,672.00",Non-domestic Rates,Large,Programme Expenditure
UK Statistics Family,Office for National Statistics,23/06/2022,Exp - Short-Term Contract & Agency Staff - Full Cost,Business Change Support,Concept Information Technology Ltd T/A Concept Resourcing,232549,"2,954.88",Information Management Services,Large,Programme Expenditure
UK Statistics Family,Office for National Statistics,23/06/2022,Exp - Short-Term Contract & Agency Staff - Full Cost,Business Change Support,Concept Information Technology Ltd T/A Concept Resourcing,232549,"3,088.91",Information Management Services,Large,Programme Expenditure
UK Statistics Family,Office for National Statistics,23/06/2022,Exp - Short-Term Contract & Agency Staff - Full Cost,Business Change Support,Concept Information Technology Ltd T/A Concept Resourcing,232549,"2,852.37",Information Management Services,Large,Programme Expenditure
UK Statistics Family,Office for National Statistics,23/06/2022,Exp - Short-Term Contract & Agency Staff - Full Cost,Business Change Support,Concept Information Technology Ltd T/A Concept Resourcing,232549,"1,029.64",Information Management Services,Large,Programme Expenditure
UK Statistics Family,Office for National Statistics,23/06/2022,Exp - Short-Term Contract & Agency Staff - Full Cost,Business Change Support,Concept Information Technology Ltd T/A Concept Resourcing,232549,890.5,Information Management Services,Large,Programme Expenditure
UK Statistics Family,Office for National Statistics,23/06/2022,Exp - Short-Term Contract & Agency Staff - Full Cost,Business Change Support,Concept Information Technology Ltd T/A Concept Resourcing,232549,"3,912.61",Information Management Services,Large,Programme Expenditure
UK Statistics Family,Office for National Statistics,23/06/2022,Exp - Short-Term Contract & Agency Staff - Full Cost,Business Change Support,Concept Information Technology Ltd T/A Concept Resourcing,232549,"2,352.31",Information Management Services,Large,Programme Expenditure
UK Statistics Family,Office for National Statistics,23/06/2022,Exp - Short-Term Contract & Agency Staff - Full Cost,International Trade And Transactions,Concept Information Technology Ltd T/A Concept Resourcing,232549,"2,038.67",Information Management Services,Large,Programme Expenditure
UK Statistics Family,Office for National Statistics,23/06/2022,Exp - Short-Term Contract & Agency Staff - Full Cost,International Trade And Transactions,Concept Information Technology Ltd T/A Concept Resourcing,232549,"20,854.93",Information Management Services,Large,Programme Expenditure
UK Statistics Family,Office for National Statistics,23/06/2022,Exp - Short-Term Contract & Agency Staff - Full Cost,Productivity Research And Professional Development,Concept Information Technology Ltd T/A Concept Resourcing,232549,"2,969.00",Information Management Services,Large,Programme Expenditure
UK Statistics Family,Office for National Statistics,23/06/2022,Exp - Short-Term Contract & Agency Staff - Full Cost,Productivity Research And Professional Development,Concept Information Technology Ltd T/A Concept Resourcing,232549,"8,452.29",Information Management Services,Large,Programme Expenditure
UK Statistics Family,Office for National Statistics,23/06/2022,Exp - Short-Term Contract & Agency Staff - Full Cost,Productivity Research And Professional Development,Concept Information Technology Ltd T/A Concept Resourcing,232549,"5,847.47",Information Management Services,Large,Programme Expenditure
UK Statistics Family,Office for National Statistics,23/06/2022,Exp - Purchase Of Goods And Services Consultants,Productivity Research And Professional Development,Concept Information Technology Ltd T/A Concept Resourcing,232549,"4,942.25",Information Management Services,Large,Programme Expenditure
UK Statistics Family,Office for National Statistics,23/06/2022,Exp - Purchase Of Goods And Services Consultants,Productivity Research And Professional Development,Concept Information Technology Ltd T/A Concept Resourcing,232549,"2,833.39",Information Management Services,Large,Programme Expenditure
UK Statistics Family,Office for National Statistics,23/06/2022,Exp - Short-Term Contract & Agency Staff - Full Cost,Strategy And Engagement,Concept Information Technology Ltd T/A Concept Resourcing,232549,"4,867.58",Information Management Services,Large,Programme Expenditure
UK Statistics Family,Office for National Statistics,23/06/2022,Exp - Short-Term Contract & Agency Staff - Full Cost,Business Architecture Transformation And Statistical Strategy,Concept Information Technology Ltd T/A Concept Resourcing,232549,"1,176.29",Information Management Services,Large,Programme Expenditure
UK Statistics Family,Office for National Statistics,23/06/2022,Exp - Short-Term Contract & Agency Staff - Full Cost,Business Architecture Transformation And Statistical Strategy,Concept Information Technology Ltd T/A Concept Resourcing,232549,4324.4,Information Management Services,Large,Programme Expenditure
UK Statistics Family,Office for National Statistics,23/06/2022,Exp - Short-Term Contract & Agency Staff - Full Cost,"SUB-NATIONAL STATISTICS AND ANALYSIS
Account	
AccountAutocompletes on TAB	",Concept Information Technology Ltd T/A Concept Resourcing,232549,"4,736.32",Information Management Services,Large,Programme Expenditure
UK Statistics Family,Office for National Statistics,23/06/2022,Exp - Short-Term Contract & Agency Staff - Full Cost,"SUB-NATIONAL STATISTICS AND ANALYSIS
Account	
AccountAutocompletes on TAB	",Concept Information Technology Ltd T/A Concept Resourcing,232549,"5,841.74",Information Management Services,Large,Programme Expenditure
UK Statistics Family,Office for National Statistics,23/06/2022,Exp - Purchase Of Goods/Services - Contractors,Census & Soc Methodology Dd,Concept Information Technology Ltd T/A Concept Resourcing,232549,"12,188.62",Information Management Services,Large,Programme Expenditure
UK Statistics Family,Office for National Statistics,23/06/2022,Exp - Short-Term Contract & Agency Staff - Full Cost,Public Sector And Households,Concept Information Technology Ltd T/A Concept Resourcing,232549,2979.6,Information Management Services,Large,Programme Expenditure
UK Statistics Family,Office for National Statistics,23/06/2022,Exp - Short-Term Contract & Agency Staff - Full Cost,Public Sector And Households,Concept Information Technology Ltd T/A Concept Resourcing,232549,"1,268.95",Information Management Services,Large,Programme Expenditure
UK Statistics Family,Office for National Statistics,23/06/2022,Exp - Short-Term Contract & Agency Staff - Full Cost,Public Sector And Households,Concept Information Technology Ltd T/A Concept Resourcing,232549,12441.32,Information Management Services,Large,Programme Expenditure
UK Statistics Family,Office for National Statistics,23/06/2022,Exp - Short-Term Contract & Agency Staff - Full Cost,Public Sector And Households,Concept Information Technology Ltd T/A Concept Resourcing,232549,"1,029.64",Information Management Services,Large,Programme Expenditure
UK Statistics Family,Office for National Statistics,23/06/2022,Exp - Short-Term Contract & Agency Staff - Full Cost,Public Sector And Households,Concept Information Technology Ltd T/A Concept Resourcing,232549,"2,729.04",Information Management Services,Large,Programme Expenditure
UK Statistics Family,Office for National Statistics,23/06/2022,Exp - Short-Term Contract & Agency Staff - Full Cost,Data As A Service,Concept Information Technology Ltd T/A Concept Resourcing,232549,2295.82,Information Management Services,Large,Programme Expenditure
UK Statistics Family,Office for National Statistics,23/06/2022,Exp - Short-Term Contract & Agency Staff - Full Cost,Business Statistics Transformation,Concept Information Technology Ltd T/A Concept Resourcing,232549,"3,615.01",Information Management Services,Large,Programme Expenditure
UK Statistics Family,Office for National Statistics,23/06/2022,Exp - Short-Term Contract & Agency Staff - Full Cost,Prices Division,Concept Information Technology Ltd T/A Concept Resourcing,232549,"5,971.89",Information Management Services,Large,Programme Expenditure
UK Statistics Family,Office for National Statistics,23/06/2022,Exp - Short-Term Contract & Agency Staff - Full Cost,Labour Market,Concept Information Technology Ltd T/A Concept Resourcing,232549,"2,988.07",Information Management Services,Large,Programme Expenditure
UK Statistics Family,Office for National Statistics,23/06/2022,Telecoms,IT Operations,Bt Global Services,232554,"47,915.94",Telecommunications,Large,Programme Expenditure
UK Statistics Family,Office for National Statistics,23/06/2022,Exp - Purchase Of Goods/Services - IT Contractual Services,IT Operations,Ibm United Kingdom Ltd,232555,"121,693.20",Information Management Services,Large,Programme Expenditure
UK Statistics Family,Office for National Statistics,23/06/2022,Exp - Purchase Of Goods/Services - Contractors,Business Architecture,Certes Computing Ltd,232558,"19,332.21",Information Management Services,SME,Programme Expenditure
UK Statistics Family,Office for National Statistics,23/06/2022,Exp - Purchase Of Goods/Services - Contractors,Testing,Certes Computing Ltd,232558,"13,763.52",Information Management Services,SME,Programme Expenditure
UK Statistics Family,Office for National Statistics,23/06/2022,Exp - Purchase Of Goods/Services - Contractors,Testing,Certes Computing Ltd,232558,10071.77,Information Management Services,SME,Programme Expenditure
UK Statistics Family,Office for National Statistics,23/06/2022,Exp - Purchase Of Goods/Services - Contractors,Consultancy Management,Certes Computing Ltd,232558,"11,586.82",Information Management Services,SME,Programme Expenditure
UK Statistics Family,Office for National Statistics,23/06/2022,Exp - Purchase Of Goods/Services - Contractors,Security Advisory,Certes Computing Ltd,232558,"12,489.30",Information Management Services,SME,Programme Expenditure
UK Statistics Family,Office for National Statistics,23/06/2022,Exp - Purchase Of Goods/Services - Contractors,Data Architecture,Certes Computing Ltd,232558,"8,639.14",Information Management Services,SME,Programme Expenditure
UK Statistics Family,Office for National Statistics,23/06/2022,Exp - Purchase Of Goods/Services - Contractors,Data Architecture,Certes Computing Ltd,232558,9180.36,Information Management Services,SME,Programme Expenditure
UK Statistics Family,Office for National Statistics,23/06/2022,Exp - Purchase Of Goods/Services - Contractors,Data Architecture,Certes Computing Ltd,232558,"15,207.70",Information Management Services,SME,Programme Expenditure
UK Statistics Family,Office for National Statistics,23/06/2022,Exp - Purchase Of Goods/Services - Contractors,Strategy And Architecture,Certes Computing Ltd,232558,"35,118.76",Information Management Services,SME,Programme Expenditure
UK Statistics Family,Office for National Statistics,23/06/2022,Exp - Purchase Of Goods/Services - Contractors,Strategy And Architecture,Certes Computing Ltd,232558,"47,118.78",Information Management Services,SME,Programme Expenditure
UK Statistics Family,Office for National Statistics,23/06/2022,Exp - Purchase Of Goods/Services - Contractors,Tech Delivery Legacy Sp,Certes Computing Ltd,232558,"8,400.00",Information Management Services,SME,Programme Expenditure
UK Statistics Family,Office for National Statistics,23/06/2022,Exp - Purchase Of Goods/Services - Contractors,IT Applications,Certes Computing Ltd,232558,"24,221.89",Information Management Services,SME,Programme Expenditure
UK Statistics Family,Office for National Statistics,23/06/2022,Exp - Purchase Of Goods/Services - Contractors,Digital Delivery,Certes Computing Ltd,232558,12958.7,Information Management Services,SME,Programme Expenditure
UK Statistics Family,Office for National Statistics,23/06/2022,Exp - Purchase Of Goods/Services - Contractors,Digital Delivery,Certes Computing Ltd,232558,"14,091.12",Information Management Services,SME,Programme Expenditure
UK Statistics Family,Office for National Statistics,23/06/2022,Exp - Purchase Of Goods/Services - Contractors,Data As A Service,Certes Computing Ltd,232558,"18,292.68",Information Management Services,SME,Programme Expenditure
UK Statistics Family,Office for National Statistics,23/06/2022,Exp - Purchase Of Goods/Services - Contractors,Business Architecture,La International,232559,3754.39,Information Management Services,SME,Programme Expenditure
UK Statistics Family,Office for National Statistics,23/06/2022,Exp - Purchase Of Goods/Services - Contractors,Business Architecture,La International,232559,"2,245.58",Information Management Services,SME,Programme Expenditure
UK Statistics Family,Office for National Statistics,23/06/2022,Exp - Purchase Of Goods/Services - Contractors,Testing,La International,232559,1772.47,Information Management Services,SME,Programme Expenditure
UK Statistics Family,Office for National Statistics,23/06/2022,Exp - Purchase Of Goods/Services - Contractors,Testing,La International,232559,"13,944.96",Information Management Services,SME,Programme Expenditure
UK Statistics Family,Office for National Statistics,23/06/2022,Exp - Purchase Of Goods/Services - Contractors,Testing,La International,232559,"9,663.88",Information Management Services,SME,Programme Expenditure
UK Statistics Family,Office for National Statistics,23/06/2022,Exp - Purchase Of Goods/Services - Contractors,Testing,La International,232559,"7,543.95",Information Management Services,SME,Programme Expenditure
UK Statistics Family,Office for National Statistics,23/06/2022,Exp - Purchase Of Goods/Services - Contractors,Consultancy Management,La International,232559,"3,588.30",Information Management Services,SME,Programme Expenditure
UK Statistics Family,Office for National Statistics,23/06/2022,Exp - Purchase Of Goods/Services - Contractors,Digital Publishing,La International,232559,"3,593.40",Information Management Services,SME,Programme Expenditure
UK Statistics Family,Office for National Statistics,23/06/2022,Exp - Purchase Of Goods/Services - Contractors,STRATEGY SYNTHESIS AND CO-ORDINATION,La International,232559,"3,156.90",Information Management Services,SME,Programme Expenditure
UK Statistics Family,Office for National Statistics,23/06/2022,Exp - Purchase Of Goods/Services - Contractors,Security And Information Management Saim,La International,232559,"5,700.00",Information Management Services,SME,Programme Expenditure
UK Statistics Family,Office for National Statistics,23/06/2022,Exp - Purchase Of Goods/Services - Contractors,Data Architecture,La International,232559,"3,981.18",Information Management Services,SME,Programme Expenditure
UK Statistics Family,Office for National Statistics,23/06/2022,Exp - Purchase Of Goods/Services - Contractors,Tech Delivery Legacy Sp,La International,232559,19744.95,Information Management Services,SME,Programme Expenditure
UK Statistics Family,Office for National Statistics,23/06/2022,Exp - Purchase Of Goods/Services - Contractors,Tech Delivery Data As A Platform,La International,232559,3332.02,Information Management Services,SME,Programme Expenditure
UK Statistics Family,Office for National Statistics,23/06/2022,Telecoms,IT Operations,Bt Global Services,232581,"25,851.96",Telecommunications,Large,Programme Expenditure
UK Statistics Family,Office for National Statistics,23/06/2022,Exp - Purchase Of Goods/Services - Contractors,Digital Publishing,Talent International,232583,"10,530.00",Information Management Services,SME,Programme Expenditure
UK Statistics Family,Office for National Statistics,23/06/2022,Exp - Short-Term Contract & Agency Staff - Full Cost,Business Change Support,Talent International,232583,"18,240.00",Information Management Services,SME,Programme Expenditure
UK Statistics Family,Office for National Statistics,23/06/2022,Exp - Purchase Of Goods/Services - Contractors,Data Architecture,Talent International,232583,"17,077.20",Information Management Services,SME,Programme Expenditure
UK Statistics Family,Office for National Statistics,24/06/2022,Rent Payable,Property Titchfield,Eaton Limited,232667,"29,623.20",Rental Charges,SME,Programme Expenditure
UK Statistics Family,Office for National Statistics,24/06/2022,Telecoms,Tech Delivery Next Gen IT And Infrastructure,Freedom Communications (UK) Ltd,232668,"5,596.91",Telecommunications,Large,Programme Expenditure
UK Statistics Family,Office for National Statistics,24/06/2022,Telecoms,IT Operations,Freedom Communications (UK) Ltd,232668,"114,620.88",Telecommunications,Large,Programme Expenditure
UK Statistics Family,Office for National Statistics,24/06/2022,Exp - Purchase Of Goods/Services - Contractors,Digital Publishing,Talent International,232671,"12,768.00",Information Management Services,SME,Programme Expenditure
UK Statistics Family,Office for National Statistics,24/06/2022,Exp - Purchase Of Goods/Services - Contractors,Data Architecture,Talent International,232671,"16,800.00",Information Management Services,SME,Programme Expenditure
UK Statistics Family,Office for National Statistics,24/06/2022,Exp - Short-Term Contract & Agency Staff - Full Cost,Data As A Service,Talent International,232671,"4,102.26",Information Management Services,SME,Programme Expenditure
UK Statistics Family,Office for National Statistics,27/06/2022,Surveys,Business Outputs And Developments,Iff Research,232767,"163,065.60",Statistical Services,Large,Programme Expenditure
UK Statistics Family,Office for National Statistics,28/06/2022,Exp - Purchase Of Goods/Services - IT Contractual Services,Digital Publishing,Swirrl It Ltd,232925,"71,640.00",Information Management Services,SME,Programme Expenditure
UK Statistics Family,Office for National Statistics,28/06/2022,"ICT Outsourcing, Maintenance And Support",Covid Infection Survey,Equiniti Limited,232930,"17,993.87",Information Management Services,Large,Programme Expenditure
UK Statistics Family,Office for National Statistics,28/06/2022,"ICT Outsourcing, Maintenance And Support",Researcher Support And Data Access ,Equiniti Limited,232930,"161,991.36",Information Management Services,Large,Programme Expenditure
UK Statistics Family,Office for National Statistics,28/06/2022,Exp - Purchase Of Goods/Services - IT Contractual Services,Researcher Support And Data Access ,Equiniti Limited,232930,"-9,696.78",Information Management Services,Large,Programme Expenditure
UK Statistics Family,Office for National Statistics,28/06/2022,Hosting,IT Operations,Equiniti Limited,232930,"51,041.75",Information Management Services,Large,Programme Expenditure
UK Statistics Family,Office for National Statistics,28/06/2022,Postage,Survey Processing Centre,DHL Parcel Ltd,232932,"26,609.94",Postage Services,Large,Programme Expenditure
UK Statistics Family,Office for National Statistics,28/06/2022,Exp - Purchase Of Goods And Services Consultants,Security Advisory,Bridewell Consulting Limited,232941,"74,100.00",Consultancy,SME,Programme Expenditure
UK Statistics Family,Office for National Statistics,07/06/2022,Exp - Purchase Of Goods/Services - Incentive Payments,Covid Infection Survey,Sodexo Motivation Solutions U.K. ltd,30003510,"1,217,379.01",Survey Response Incentive Vouchers,Large,Programme Expenditure
UK Statistics Family,Office for National Statistics,07/06/2022,Surveys,Covid Infection Survey,IQVIA Limited,30003511,"14,880,000.00",Statistical Services,Large,Programme Expenditure
UK Statistics Family,Office for National Statistics,10/06/2022,Exp - Purchase Of Goods/Services - Incentive Payments,Covid Infection Survey,Sodexo Motivation Solutions U.K. ltd,30003519,"1,047,061.86",Survey Response Incentive Vouchers,Large,Programme Expenditure
UK Statistics Family,Office for National Statistics,14/06/2022,Stationery,Lodgecard,Royal Bank of Scotland,30003521,"2,916.18",Multiple Procurement Card Purchases  - Stationery ,Large,Programme Expenditure
UK Statistics Family,Office for National Statistics,14/06/2022,Other Goods And Services,GPC,Royal Bank of Scotland,30003521,43638.96,Multiple Procurement Card Purchases - other goods/services  ,Large,Programme Expenditure
UK Statistics Family,Office for National Statistics,16/06/2022,Electricity,Property Services,Edf Energy,30003524,"31,155.77",Utility Charges,Large,Programme Expenditure
UK Statistics Family,Office for National Statistics,20/06/2022,Exp - Purchase Of Goods/Services - Incentive Payments,Covid Infection Survey,Sodexo Motivation Solutions U.K. ltd,30003529,"1,121,171.80",Survey Response Incentive Vouchers,Large,Programme Expenditure
UK Statistics Family,Office for National Statistics,23/06/2022,Exp - Purchase Of Goods/Services - Incentive Payments,Covid Infection Survey,Sodexo Motivation Solutions U.K. ltd,30003532,1018456.99,Survey Response Incentive Vouchers,Large,Programme Expenditure
UK Statistics Family,Office for National Statistics,29/06/2022,Exp - Purchase Of Goods And Services Consultants,Data Science Campus,United Nations Statistics Division,30003542,"82,387.76",Contribution towards the United Nations Global Platform (UNGP) work programme,Large,Programme Expenditure
,,,,,,,"26,357,707.29",,,
